bitfinex-derivatives/quotes_BNBF0:USTF0_20250401
["timestamp","ask_amount","ask_price","bid_price","bid_amount"]
[1743518737190,1.94882341,614.74,613.23,0.26974283]
[1743518737394,1.9488287,614.73,613.25,0.32613126]
[1743518737588,1.94883399,614.72,613.26,0.26974283]
[1743518737788,1.62348262,614.71,613.27,0.26974283]
[1743518737993,1.62348262,614.7,613.28,0.26974283]
[1743518738191,0.32535137,614.72,613.28,0.26974283]
[1743518738383,1.62426344,614.71,613.29,0.26974283]
[1743518738589,1.62426344,614.7,613.3,0.26974283]
[1743518738786,1.62426344,614.69,613.31,0.26974283]
[1743518738986,1.62426344,614.68,613.32,0.26974283]
[1743518739189,1.62426344,614.67,613.33,0.26974283]
[1743518739486,1.62426344,614.66,613.34,0.26974283]
[1743518739686,1.62426344,614.65,613.35,0.26974283]
[1743518739886,1.94965716,614.64,613.36,0.26974283]
[1743518740086,1.94966246,614.63,613.37,0.26974283]
[1743518740292,1.62426344,614.62,613.38,0.26974283]
[1743518740492,1.62453567,614.61,613.39,0.26974283]
[1743518740687,1.62453567,614.6,613.4,0.26974283]
[1743518740892,1.62453567,614.59,613.41,0.26974283]
[1743518741093,1.62453567,614.58,613.42,0.26974283]
[1743518741291,1.62453567,614.57,613.34,0.236]
[1743518741493,1.62453567,614.56,613.35,0.5963858]
[1743518741788,1.62453567,614.55,613.36,0.59638048]
[1743518741993,1.62453567,614.54,613.37,0.27030771]
[1743518742193,0.32539902,614.63,613.38,0.27030771]
[1743518742394,1.62453635,614.62,613.39,0.27030771]
[1743518742592,1.62453635,614.61,613.4,0.27030771]
[1743518742788,1.62453635,614.6,613.36,0.32607277]
[1743518742993,1.62453635,614.59,613.37,0.27014718]
[1743518743190,1.62453635,614.58,613.38,0.27014718]
[1743518743391,1.62453717,614.57,613.39,0.27014718]
[1743518743587,1.62453717,614.56,613.4,0.27014718]
[1743518743791,0.32539902,614.63,613.41,0.27014718]
[1743518743987,1.62457073,614.62,613.42,0.27014718]
[1743518744193,1.94998033,614.61,613.43,0.27014718]
[1743518744395,0.3254149,614.6,613.44,0.27014718]
[1743518744693,1.62458556,614.59,613.45,0.27010329]
[1743518744894,1.62458556,614.58,613.46,0.27010329]
[1743518745093,1.62458556,614.57,613.47,0.27010329]
[1743518745293,1.62458556,614.56,613.48,0.27010329]
[1743518745493,0.3254149,614.6,613.36,0.32607277]
[1743518745494,1.62458556,614.55,613.49,0.27010329]
[1743518745796,1.62458556,614.54,613.5,0.27010329]
[1743518745993,1.62458556,614.53,613.51,0.27010329]
[1743518746290,1.95004282,614.52,613.52,0.27010329]
[1743518746495,4.54996583,614.51,613.53,0.27010329]
[1743518746690,4.22450327,614.5,613.54,0.27010329]
[1743518746896,1.62458556,614.49,613.55,0.27010329]
[1743518747092,4.22474097,614.48,613.56,0.27010329]
[1743518747293,4.22474097,614.47,613.37,0.27010329]
[1743518747494,4.55023001,614.46,613.38,0.27010329]
[1743518747690,5.20035753,614.45,613.39,0.27010329]
[1743518747890,5.20036283,614.44,613.4,0.27010329]
[1743518748094,5.20036812,614.43,613.41,0.27010329]
[1743518748291,4.87629354,614.42,613.42,0.27010329]
[1743518748596,8.31266298,614.41,613.43,0.27010329]
[1743518748793,4.5516419,614.4,613.44,0.27010329]
[1743518748998,4.5516472,614.39,613.45,0.27057139]
[1743518749296,5.20177048,614.38,613.46,0.27057139]
[1743518749494,5.20177577,614.37,613.47,0.27057139]
[1743518749699,5.20178107,614.36,613.34,0.236]
[1743518749996,5.99840002,614.35,613.35,0.27057662]
[1743518750296,4.55132724,614.34,613.36,0.27057662]
[1743518750596,4.22577462,614.33,613.37,0.27057662]
[1743518750796,4.22577462,614.32,613.38,0.27057662]
[1743518751003,4.22577462,614.31,613.39,0.27057662]
[1743518751198,4.22577462,614.3,613.4,0.27057662]
[1743518751396,4.22577462,614.29,613.41,0.27057662]
[1743518751596,4.22577462,614.28,613.42,0.27057662]
[1743518751897,4.22577462,614.27,613.43,0.27057662]
[1743518752090,4.22577462,614.26,613.44,0.27057662]
[1743518752295,4.22577462,614.25,613.45,0.27057662]
[1743518752492,4.22577462,614.24,613.46,0.27057662]
[1743518752694,4.22577462,614.23,613.47,0.27057662]
[1743518752999,4.22577462,614.23,613.34,0.236]
[1743518753000,4.22577462,614.22,613.48,0.27057662]
[1743518753200,4.22577462,614.21,613.49,0.27057662]
[1743518753494,1.44673163,614.21,613.5,0.27057662]
[1743518753696,1.44673163,614.21,613.51,0.27057662]
[1743518753894,4.22565562,614.2,613.52,0.27057662]
[1743518754094,0.32555262,614.34,613.52,0.27057662]
[1743518754095,1.62526394,614.19,613.52,0.27057662]
[1743518754297,0.32555262,614.34,613.34,0.236]
[1743518754501,0.28351691,614.19,613.35,0.27051428]
[1743518754800,6.6460399,614.18,613.36,0.27051428]
[1743518755100,4.87593915,614.17,613.37,0.27051428]
[1743518755301,4.87593915,614.16,613.38,0.27051428]
[1743518755501,4.87593915,614.15,613.39,0.27051428]
[1743518755807,4.87593915,614.14,613.4,0.27051428]
[1743518755995,4.22572226,614.13,613.34,0.236]
[1743518756196,0.32563743,614.18,613.34,0.236]
[1743518756197,4.87601394,614.12,613.34,0.236]
[1743518756402,4.87601394,614.11,613.34,0.236]
[1743518756598,4.87601394,614.1,613.34,0.236]
[1743518756801,4.87601394,614.09,613.27,0.341]
[1743518757101,4.87601394,614.08,613.27,0.341]
[1743518757301,4.87601394,614.07,613.27,0.341]
[1743518757601,3.75128898,614.08,613.27,0.341]
[1743518757602,4.87601394,614.06,613.27,0.341]
[1743518757800,4.87601394,614.05,613.35,0.27065222]
[1743518757997,4.87601394,614.04,613.36,0.27065222]
[1743518758193,4.87601394,614.03,613.37,0.27065222]
[1743518758400,4.87601394,614.02,613.38,0.27065222]
[1743518758598,4.87601394,614.01,613.39,0.27065222]
[1743518758799,4.87601394,614.0,613.4,0.27065222]
[1743518759105,4.87601394,613.99,613.27,0.341]
[1743518759302,3.75128898,614.0,613.28,0.27067157]
[1743518759497,6.32182463,613.99,613.29,0.27067157]
[1743518759697,1.44446332,613.99,613.3,0.27067157]
[1743518759904,1.44446332,613.99,613.31,0.27067157]
[1743518760102,1.44446332,613.99,613.32,0.27067157]
[1743518760302,0.32563743,614.18,613.33,0.27067157]
[1743518760501,0.28358854,613.98,613.34,0.27067157]
[1743518760703,0.28358854,613.98,613.28,0.27067157]
[1743518760904,0.32563743,614.18,613.29,0.27067157]
[1743518761102,4.87727724,614.17,613.3,0.27067157]
[1743518761306,4.87727724,614.16,613.31,0.27067157]
[1743518761502,4.87727724,614.15,613.32,0.27067157]
[1743518761703,4.87727724,614.14,613.33,0.27067157]
[1743518761905,4.87727724,614.13,613.34,0.27065383]
[1743518762102,4.87727724,614.13,613.27,0.341]
[1743518762103,4.87727724,614.12,613.35,0.27065383]
[1743518762307,4.87730547,614.11,613.36,0.27065383]
[1743518762506,4.87730547,614.1,613.37,0.27065383]
[1743518762710,4.87730547,614.09,613.38,0.27065383]
[1743518762912,4.87730547,614.08,613.39,0.27065383]
[1743518763210,4.87730547,614.07,613.4,0.27065383]
[1743518763411,4.87730547,614.06,613.4,0.27065383]
[1743518763614,4.87730547,614.05,613.41,0.27065383]
[1743518763813,4.87730547,614.04,613.28,0.27065383]
[1743518764010,4.87730547,614.03,613.29,0.27065383]
[1743518764214,4.87730547,614.02,613.3,0.27065383]
[1743518764413,4.87730547,614.01,613.31,0.27065383]
[1743518764714,4.87750591,614.0,613.32,0.27065383]
[1743518764913,3.74132534,614.0,613.33,0.27065383]
[1743518765109,4.87740312,613.99,613.34,0.27065383]
[1743518765313,4.87740312,613.98,613.35,0.27065383]
[1743518765613,3.74132534,614.0,613.36,0.27065383]
[1743518765816,4.87747807,613.99,613.37,0.27065383]
[1743518766015,4.87747807,613.98,613.38,0.27065383]
[1743518766216,2.30281476,614.06,613.39,0.27065383]
[1743518766410,4.8774221,614.05,613.39,0.27065383]
[1743518766611,4.8774221,614.04,613.4,0.27065383]
[1743518766816,3.74083466,614.04,613.41,0.27065383]
[1743518767015,3.74083466,614.04,613.42,0.27065383]
[1743518767217,2.30281476,614.06,613.43,0.27065383]
[1743518767617,2.30281476,614.06,613.44,0.27065383]
[1743518767816,2.30281476,614.06,613.45,0.27065383]
[1743518768117,2.30281476,614.06,613.46,0.27065383]
[1743518768417,2.30281476,614.06,613.47,0.27065383]
[1743518768613,2.30281476,614.06,613.48,0.27065383]
[1743518768819,2.30281476,614.06,613.49,0.27065383]
[1743518769020,2.30281476,614.06,613.5,0.27065383]
[1743518769212,2.30281476,614.06,613.24,0.436]
[1743518769213,2.30281476,614.06,613.51,0.27065383]
[1743518769418,2.30281476,614.06,613.52,0.27065383]
[1743518769617,2.30281476,614.06,613.53,0.27065383]
[1743518769816,2.30281476,614.06,613.54,0.27065383]
[1743518770016,2.30281476,614.06,613.55,0.27065383]
[1743518770213,2.30281476,614.06,613.56,0.27065383]
[1743518770413,2.30281476,614.06,613.57,0.27065383]
[1743518770613,2.30281476,614.06,613.58,0.27065383]
[1743518770817,2.30281476,614.06,613.59,0.27065383]
[1743518771013,2.30281476,614.06,613.24,0.436]
[1743518771014,2.30281476,614.06,613.6,0.27065383]
[1743518771218,2.30281476,614.06,613.61,0.27065383]
[1743518771415,2.30281476,614.06,613.62,0.27065383]
[1743518771618,2.30281476,614.06,613.63,0.27065383]
[1743518771920,2.30281476,614.06,613.64,0.27065383]
[1743518772113,2.30281476,614.06,613.65,0.27065383]
[1743518772315,2.30281476,614.06,613.66,0.27065383]
[1743518772620,2.30281476,614.06,613.67,0.27065383]
[1743518772920,2.30281476,614.06,613.68,0.27045549]
[1743518773121,2.30281476,614.06,613.69,0.27045549]
[1743518773420,2.30281476,614.06,613.7,0.27045549]
[1743518773621,2.30281476,614.06,613.71,0.27045549]
[1743518773823,2.30281476,614.06,613.72,0.27045549]
[1743518774120,2.30281476,614.06,613.73,0.27045549]
[1743518774321,2.30281476,614.06,613.74,0.27045549]
[1743518774518,2.30281476,614.06,613.75,0.27045549]
[1743518774718,2.30281476,614.06,613.76,0.27045549]
[1743518774917,2.30281476,614.06,613.77,0.27045549]
[1743518775116,2.30281476,614.06,613.24,0.436]
[1743518775320,2.30281476,614.06,613.25,0.27046332]
[1743518775618,2.30281476,614.06,613.26,0.27046332]
[1743518775822,2.30281476,614.06,613.27,0.27046332]
[1743518776019,2.30281476,614.06,613.28,0.27054433]
[1743518776226,2.30281476,614.06,613.29,0.27054433]
[1743518776424,2.30281476,614.06,613.3,0.27054433]
[1743518776623,2.30281476,614.06,613.31,0.27054433]
[1743518776825,2.30281476,614.06,613.32,0.27054433]
[1743518777029,2.30281476,614.06,613.33,0.27054433]
[1743518777229,2.30281476,614.06,613.34,0.27054433]
[1743518777525,2.30281476,614.06,613.35,0.27054433]
[1743518777724,2.30281476,614.06,613.36,0.27054433]
[1743518777929,2.30281476,614.06,613.37,0.27054433]
[1743518778131,2.30281476,614.06,613.38,0.27054433]
[1743518778328,2.30281476,614.06,613.39,0.27054433]
[1743518778531,2.30281476,614.06,613.4,0.27054433]
[1743518778725,2.30281476,614.06,613.41,0.27054433]
[1743518778927,2.30281476,614.06,613.42,0.27054433]
[1743518779127,2.30281476,614.06,613.43,0.27054433]
[1743518779324,2.30281476,614.06,613.24,0.436]
[1743518779325,2.30281476,614.06,613.44,0.27054433]
[1743518779530,2.30281476,614.06,613.45,0.27054433]
[1743518779732,2.30281476,614.06,613.46,0.27054433]
[1743518780027,2.30281476,614.06,613.47,0.27054433]
[1743518780226,2.30281476,614.06,613.48,0.27054433]
[1743518780431,2.30281476,614.06,613.49,0.27054433]
[1743518780831,2.30281476,614.06,613.5,0.27054433]
[1743518781031,2.30281476,614.06,613.51,0.27054433]
[1743518781229,2.30281476,614.06,613.52,0.27054433]
[1743518781429,2.30281476,614.06,613.53,0.27054433]
[1743518781626,2.30281476,614.06,613.54,0.27054433]
[1743518781826,2.30281476,614.06,613.55,0.27054433]
[1743518782132,2.30281476,614.06,613.36,0.236]
[1743518782332,2.30281476,614.06,613.37,0.270028]
[1743518782533,2.30281476,614.06,613.38,0.270028]
[1743518782728,2.30281476,614.06,613.36,0.236]
[1743518782729,2.30281476,614.06,613.39,0.270028]
[1743518782929,2.30281476,614.06,613.4,0.270028]
[1743518783132,2.30281476,614.06,613.36,0.236]
[1743518783133,2.30281476,614.06,613.41,0.270028]
[1743518783327,2.30281476,614.06,613.42,0.270028]
[1743518783529,2.30281476,614.06,613.43,0.270028]
[1743518783731,2.30281476,614.06,613.44,0.270028]
[1743518784035,2.30281476,614.06,613.45,0.270028]
[1743518784234,2.30281476,614.06,613.46,0.270028]
[1743518784429,2.30281476,614.06,613.47,0.270028]
[1743518784634,2.30281476,614.06,613.48,0.270028]
[1743518784828,2.30281476,614.06,613.49,0.270028]
[1743518785032,2.30281476,614.06,613.5,0.270028]
[1743518785228,2.30281476,614.06,613.51,0.270028]
[1743518785433,2.30281476,614.06,613.52,0.270028]
[1743518785632,2.30281476,614.06,613.53,0.270028]
[1743518785832,2.30281476,614.06,613.54,0.270028]
[1743518786028,2.30281476,614.06,613.55,0.270028]
[1743518786333,2.30281476,614.06,613.56,0.270028]
[1743518786528,2.30281476,614.06,613.57,0.270028]
[1743518786734,2.30281476,614.06,613.58,0.270028]
[1743518787134,2.30281476,614.06,613.59,0.270028]
[1743518787333,2.30281476,614.06,613.6,0.270028]
[1743518787529,2.30281476,614.06,613.61,0.270028]
[1743518787735,2.30281476,614.06,613.62,0.270028]
[1743518787935,2.30281476,614.06,613.63,0.270028]
[1743518788135,2.30281476,614.06,613.64,0.270028]
[1743518788331,2.30281476,614.06,613.65,0.270028]
[1743518788535,2.30281476,614.06,613.66,0.270028]
[1743518788836,2.30281476,614.06,613.67,0.270028]
[1743518789032,2.30281476,614.06,613.68,0.270028]
[1743518789230,2.30281476,614.06,613.69,0.270028]
[1743518789528,2.30281476,614.06,613.7,0.270028]
[1743518789835,2.30281476,614.06,613.71,0.270028]
[1743518790036,2.30281476,614.06,613.36,0.236]
[1743518790235,2.30281476,614.06,613.37,0.5957811]
[1743518790431,2.30281476,614.06,613.38,0.26971364]
[1743518790630,2.30281476,614.06,613.39,0.26971364]
[1743518790936,2.30281476,614.06,613.4,0.26971364]
[1743518791131,2.30281476,614.06,613.41,0.26971364]
[1743518791434,2.30281476,614.06,613.42,0.26971364]
[1743518791834,2.30281476,614.06,613.43,0.26971364]
[1743518792138,2.30281476,614.06,613.44,0.26971364]
[1743518792332,2.30281476,614.06,613.45,0.26971364]
[1743518792633,2.30281476,614.06,613.46,0.26971364]
[1743518792836,2.30281476,614.06,613.37,0.32606746]
[1743518792837,2.30281476,614.06,613.47,0.26971364]
[1743518793029,2.30281476,614.06,613.48,0.26971364]
[1743518793336,2.30281476,614.06,613.49,0.26989165]
[1743518793530,2.30281476,614.06,613.5,0.26989165]
[1743518793732,2.30281476,614.06,613.51,0.26989165]
[1743518794036,2.30281476,614.06,613.52,0.26989165]
[1743518794232,2.30281476,614.06,613.53,0.26989165]
[1743518794443,2.30281476,614.06,613.54,0.26989165]
[1743518794633,2.30281476,614.06,613.55,0.26989165]
[1743518794833,2.30281476,614.06,613.37,0.32606746]
[1743518795135,2.30281476,614.06,613.38,0.26969785]
[1743518795334,2.30281476,614.06,613.39,0.26969785]
[1743518795536,2.30281476,614.06,613.4,0.26969785]
[1743518795741,2.30281476,614.06,613.41,0.26969785]
[1743518796038,0.417,614.05,613.42,0.26969785]
[1743518796239,0.417,614.05,613.43,0.26969785]
[1743518796434,0.417,614.05,613.44,0.26969785]
[1743518796633,0.417,614.05,613.45,0.26969785]
[1743518796839,0.417,614.05,613.46,0.26969785]
[1743518797139,0.417,614.05,613.37,0.32606746]
[1743518797140,0.417,614.05,613.47,0.26969785]
[1743518797339,0.417,614.05,613.48,0.26969785]
[1743518797541,0.417,614.05,613.49,0.26969785]
[1743518797734,0.417,614.05,613.5,0.26969785]
[1743518797934,0.417,614.05,613.51,0.26969785]
[1743518798241,0.417,614.05,613.52,0.26986263]
[1743518798440,0.417,614.05,613.53,0.26986263]
[1743518798638,0.417,614.05,613.54,0.26986263]
[1743518798836,0.417,614.05,613.55,0.26986263]
[1743518799040,0.417,614.05,613.56,0.26986263]
[1743518799236,0.417,614.05,613.57,0.26986263]
[1743518799441,0.417,614.05,613.58,0.26986263]
[1743518799634,0.417,614.05,613.5,0.475]
[1743518799841,0.417,614.05,613.51,0.27004519]
[1743518800042,0.417,614.05,613.52,0.27004519]
[1743518800237,0.417,614.05,613.53,0.27004519]
[1743518800437,0.417,614.05,613.54,0.27004519]
[1743518800635,0.417,614.05,613.55,0.27004519]
[1743518800840,0.417,614.05,613.56,0.27004519]
[1743518801038,0.417,614.05,613.57,0.27004519]
[1743518801543,0.417,614.05,613.58,0.27004519]
[1743518801745,0.417,614.05,613.59,0.27004519]
[1743518801944,0.417,614.05,613.5,0.475]
[1743518801945,0.417,614.05,613.6,0.27004519]
[1743518802141,0.417,614.05,613.61,0.27004519]
[1743518802341,0.417,614.05,613.5,0.475]
[1743518802342,0.417,614.05,613.62,0.27004519]
[1743518802542,0.417,614.05,613.63,0.27004519]
[1743518802739,0.417,614.05,613.64,0.27004519]
[1743518802941,0.417,614.05,613.65,0.27004519]
[1743518803137,0.417,614.05,613.5,0.475]
[1743518803338,0.417,614.05,613.51,0.26970826]
[1743518803644,0.417,614.05,613.52,0.26970826]
[1743518803944,0.417,614.05,613.53,0.26970826]
[1743518804142,0.417,614.05,613.54,0.26970826]
[1743518804344,0.417,614.05,613.55,0.26970826]
[1743518804544,0.417,614.05,613.56,0.26970826]
[1743518804745,0.417,614.05,613.57,0.26970826]
[1743518804946,0.417,614.05,613.58,0.26970826]
[1743518805148,0.417,614.05,613.59,0.26970826]
[1743518805447,0.417,614.05,613.6,0.26970826]
[1743518805647,0.417,614.05,613.61,0.26970826]
[1743518805849,0.417,614.05,613.62,0.26970826]
[1743518806147,0.417,614.05,613.63,0.26970826]
[1743518806344,0.417,614.05,613.51,0.26970826]
[1743518806642,0.417,614.05,613.52,0.26970826]
[1743518806841,0.417,614.05,613.5,0.475]
[1743518806842,0.417,614.05,613.51,0.26970826]
[1743518807047,0.417,614.05,613.52,0.26970826]
[1743518807245,0.417,614.05,613.53,0.26970826]
[1743518807447,0.417,614.05,613.54,0.26970826]
[1743518807749,0.417,614.05,613.55,0.26970826]
[1743518808047,0.417,614.05,613.56,0.26970826]
[1743518808450,0.417,614.05,613.57,0.26970826]
[1743518808649,0.417,614.05,613.58,0.26970826]
[1743518808843,0.417,614.05,613.59,0.26970826]
[1743518809042,0.417,614.05,613.6,0.26970826]
[1743518809243,0.417,614.05,613.61,0.26970826]
[1743518809446,0.417,614.05,613.62,0.26970826]
[1743518809650,0.417,614.05,613.63,0.26970826]
[1743518809946,0.417,614.05,613.6,0.236]
[1743518809947,0.417,614.05,613.64,0.26970826]
[1743518810143,0.417,614.05,613.65,0.26970826]
[1743518810343,0.417,614.05,613.66,0.26970826]
[1743518810546,0.417,614.05,613.67,0.26970826]
[1743518810749,0.417,614.05,613.68,0.26970826]
[1743518811051,0.417,614.05,613.69,0.26970826]
[1743518811252,0.417,614.05,613.7,0.26970826]
[1743518811452,0.28360818,614.04,613.61,0.26970826]
[1743518811752,0.28360818,614.04,613.62,0.26970826]
[1743518811956,0.28360818,614.04,613.63,0.26970826]
[1743518812154,0.28360818,614.04,613.61,0.26970826]
[1743518812455,0.28360818,614.04,613.62,0.26970826]
[1743518812655,0.28360818,614.04,613.61,0.26970826]
[1743518812851,0.28360818,614.04,613.62,0.26970826]
[1743518813057,0.28360818,614.04,613.63,0.26970826]
[1743518813255,0.28360818,614.04,613.64,0.26970826]
[1743518813556,0.28360818,614.04,613.6,0.236]
[1743518813557,0.28360818,614.04,613.65,0.26970826]
[1743518813758,0.28360818,614.04,613.66,0.26970826]
[1743518813958,0.28360818,614.04,613.67,0.2694682]
[1743518814158,2.30281476,614.06,613.68,0.2694682]
[1743518814354,2.30281476,614.06,613.69,0.2694682]
[1743518814555,0.28350998,614.05,613.7,0.2694682]
[1743518814753,0.28350998,614.05,613.71,0.2694682]
[1743518814957,0.28350998,614.05,613.72,0.2694682]
[1743518815154,0.28350998,614.05,613.73,0.2694682]
[1743518815359,0.28350998,614.05,613.62,0.2694682]
[1743518815558,0.28350998,614.05,613.74,0.2694682]
[1743518815754,0.28350998,614.05,613.75,0.2694682]
[1743518815952,0.28350998,614.05,613.76,0.2694682]
[1743518816252,0.28350998,614.05,613.61,0.538]
[1743518816253,0.28350998,614.05,613.77,0.2694682]
[1743518816557,0.28350998,614.05,613.78,0.2694682]
[1743518816758,0.28350998,614.05,613.79,0.2694682]
[1743518816953,2.30281476,614.06,613.79,0.2694682]
[1743518817157,2.30281476,614.06,613.8,0.2694682]
[1743518817354,2.30281476,614.06,613.62,0.2694682]
[1743518817553,2.30281476,614.06,613.63,0.2694682]
[1743518817758,2.30281476,614.06,613.61,0.538]
[1743518818354,2.30281476,614.06,613.62,0.26927148]
[1743518820462,2.30281476,614.06,613.61,0.538]
[1743518820760,0.28352384,614.05,613.62,0.2695014]
[1743518821769,0.28352384,614.05,613.63,0.26949832]
[1743518821965,0.28352384,614.05,613.62,0.26949832]
[1743518822261,0.28352384,614.05,613.63,0.26949832]
[1743518822476,0.28352384,614.05,613.64,0.26949832]
[1743518822660,0.28352384,614.05,613.65,0.26949832]
[1743518822863,0.28352384,614.05,613.66,0.26949832]
[1743518823061,0.28352384,614.05,613.67,0.26949832]
[1743518823365,2.30281476,614.06,613.68,0.26959743]
[1743518823565,0.28352615,614.04,613.69,0.26959743]
[1743518823965,0.28352615,614.04,613.7,0.26959743]
[1743518824164,0.28352615,614.04,613.71,0.26959743]
[1743518824361,0.28352615,614.04,613.72,0.26959743]
[1743518824566,0.28352615,614.04,613.73,0.26959743]
[1743518824762,0.28352615,614.04,613.61,0.538]
[1743518824763,0.28352615,614.04,613.74,0.26959743]
[1743518824964,0.28352615,614.04,613.75,0.26959743]
[1743518825164,0.28352615,614.04,613.76,0.26959743]
[1743518825466,0.28352615,614.04,613.77,0.26959743]
[1743518825763,0.28352615,614.04,613.78,0.26959743]
[1743518825962,0.28352615,614.04,613.79,0.26959743]
[1743518826163,0.28352615,614.04,613.8,0.26959743]
[1743518826567,0.28352615,614.04,613.81,0.26959743]
[1743518826768,0.28352615,614.04,613.67,0.26959743]
[1743518826969,0.28352615,614.04,613.68,0.26959743]
[1743518827269,0.28352615,614.04,613.69,0.26959743]
[1743518827469,0.28352615,614.04,613.67,0.26959743]
[1743518827770,0.28352615,614.04,613.68,0.26959743]
[1743518827965,0.28352615,614.04,613.66,0.236]
[1743518828172,0.28352615,614.04,613.67,0.26941755]
[1743518828974,0.28352615,614.04,613.68,0.26941755]
[1743518829172,2.30281476,614.06,613.69,0.26941755]
[1743518829366,2.30281476,614.06,613.7,0.26933587]
[1743518829566,0.28353308,614.03,613.66,0.236]
[1743518829772,0.28353308,614.03,613.67,0.26931364]
[1743518829967,0.28353308,614.03,613.68,0.26931364]
[1743518830168,0.28353308,614.03,613.69,0.26931364]
[1743518830374,0.28353308,614.03,613.7,0.26931364]
[1743518830568,0.28353308,614.03,613.71,0.26931364]
[1743518830768,0.28353308,614.03,613.72,0.26931364]
[1743518830971,0.28353308,614.03,613.73,0.26931364]
[1743518831173,0.28353308,614.03,613.74,0.26931364]
[1743518831470,0.28353308,614.03,613.75,0.26931364]
[1743518831670,0.28353308,614.03,613.76,0.26931364]
[1743518831870,0.28353308,614.03,613.67,0.26931364]
[1743518832180,2.30281476,614.06,613.68,0.26931364]
[1743518832378,2.30281476,614.06,613.67,0.26931364]
[1743518832676,0.28351691,614.02,613.68,0.26931364]
[1743518832874,0.28351691,614.02,613.69,0.26898546]
[1743518833069,0.28351691,614.02,613.7,0.26898546]
[1743518833270,0.28351691,614.02,613.71,0.26898546]
[1743518833473,0.28351691,614.02,613.72,0.26898546]
[1743518833673,0.28351691,614.02,613.73,0.26898546]
[1743518833976,0.28351691,614.02,613.74,0.26898546]
[1743518834171,0.28351691,614.02,613.75,0.26898546]
[1743518834378,0.28351691,614.02,613.67,0.26898546]
[1743518834677,0.28351691,614.02,613.68,0.26898546]
[1743518834977,0.28351691,614.02,613.69,0.26898546]
[1743518835173,2.30281476,614.06,613.7,0.26898546]
[1743518835370,2.30281476,614.06,613.71,0.26898546]
[1743518835571,2.30281476,614.06,613.72,0.26898546]
[1743518835770,2.30281476,614.06,613.73,0.26898546]
[1743518835971,2.30281476,614.06,613.74,0.26898546]
[1743518836174,2.30281476,614.06,613.75,0.26898546]
[1743518836372,2.30281476,614.06,613.76,0.26898546]
[1743518836578,2.30281476,614.06,613.77,0.26898546]
[1743518836874,2.30281476,614.06,613.66,0.236]
[1743518836875,2.30281476,614.06,613.78,0.26898546]
[1743518837076,2.30281476,614.06,613.67,0.26898546]
[1743518837277,2.30281476,614.06,613.68,0.26898546]
[1743518837673,2.30281476,614.06,613.69,0.26898546]
[1743518838079,2.30281476,614.06,613.7,0.26898546]
[1743518838274,2.30281476,614.06,613.71,0.26898546]
[1743518838477,2.30281476,614.06,613.72,0.26898546]
[1743518838775,2.30281476,614.06,613.73,0.26898546]
[1743518838975,2.30281476,614.06,613.74,0.26898546]
[1743518839176,2.30281476,614.06,613.75,0.26891337]
[1743518839379,2.30281476,614.06,613.76,0.26891337]
[1743518839686,2.30281476,614.06,613.77,0.26891337]
[1743518840073,2.30281476,614.06,613.78,0.26891337]
[1743518840276,2.30281476,614.06,613.79,0.26891337]
[1743518840475,2.30281476,614.06,613.8,0.26891337]
[1743518840679,2.30281476,614.06,613.67,0.26891337]
[1743518840874,2.30281476,614.06,613.68,0.26891337]
[1743518841077,2.30281476,614.06,613.67,0.26891337]
[1743518841279,2.30281476,614.06,613.68,0.26891337]
[1743518841475,2.30281476,614.06,613.69,0.26891337]
[1743518841682,2.30281476,614.06,613.7,0.26891337]
[1743518841977,2.30281476,614.06,613.71,0.26891337]
[1743518842178,2.30281476,614.06,613.72,0.26891337]
[1743518842377,2.30281476,614.06,613.73,0.26887122]
[1743518842676,2.30281476,614.06,613.74,0.26887122]
[1743518842882,2.30281476,614.06,613.75,0.26887122]
[1743518843081,2.30281476,614.06,613.76,0.26887122]
[1743518843276,2.30281476,614.06,613.77,0.26887122]
[1743518843475,2.30281476,614.06,613.78,0.26887122]
[1743518843680,2.30281476,614.06,613.79,0.26887122]
[1743518843882,2.30281476,614.06,613.66,0.236]
[1743518844178,2.30281476,614.06,613.67,0.26895116]
[1743518844377,2.30281476,614.06,613.68,0.26895116]
[1743518844580,2.30281476,614.06,613.69,0.26895116]
[1743518844779,2.30281476,614.06,613.7,0.26895116]
[1743518844978,2.30281476,614.06,613.71,0.26895116]
[1743518845182,2.30281476,614.06,613.72,0.26895116]
[1743518845384,2.30281476,614.06,613.73,0.26895116]
[1743518845581,2.30281476,614.06,613.74,0.26895116]
[1743518845787,2.30281476,614.06,613.75,0.26895116]
[1743518846082,2.30281476,614.06,613.76,0.26895116]
[1743518846281,2.30281476,614.06,613.77,0.26895116]
[1743518846488,2.30281476,614.06,613.78,0.26895116]
[1743518846683,2.30281476,614.06,613.79,0.26895116]
[1743518846885,2.30281476,614.06,613.8,0.26895116]
[1743518847087,2.30281476,614.06,613.66,0.765]